fUSD/lending_fUSD_20241225
["ID","MTS","AMOUNT","RATE_DAILY","PERIOD"]
[346637719,1735138243934,-509.91,0.00011719,2]
[346637720,1735138243945,-500.0,0.00011719,2]
[346637721,1735138243954,-500.0,0.00011719,2]
[346637722,1735138243964,-500.0,0.00011719,2]
[346637723,1735138243974,-500.0,0.00011719,2]
[346637724,1735138243984,-500.0,0.00011719,2]
[346637725,1735138243994,-500.0,0.00011719,2]
[346637726,1735138244003,-713.12,0.0001172,2]
[346637727,1735138244013,-4948.14,0.0001172,2]
[346637728,1735138244023,-500.0,0.0001172,2]
[346637729,1735138244036,-561.47,0.0001172,2]
[346637730,1735138244046,-520.04,0.0001172,2]
[346637731,1735138244056,-500.0,0.0001172,2]
[346637732,1735138244065,-1114.29,0.0001172,2]
[346637733,1735138244075,-377.93533213,0.0001172,2]
[346637734,1735138244085,-570.74,0.0001172,2]
[346637735,1735138244098,-500.0,0.0001172,2]
[346637736,1735138244107,-1569.54,0.0001172,2]
[346637737,1735138244117,-545.05,0.0001172,2]
[346637738,1735138244126,-187.05614035,0.00011721,2]
[346637739,1735138244135,-500.0,0.00011721,2]
[346637740,1735138244144,-500.0,0.00011721,2]
[346637741,1735138244154,-500.0,0.00011721,2]
[346637742,1735138244164,-500.0,0.00011721,2]
[346637743,1735138244176,-500.0,0.00011721,2]
[346637744,1735138244189,-500.0,0.00011721,2]
[346637745,1735138244205,-500.0,0.00011721,2]
[346637746,1735138244214,-500.0,0.00011721,2]
[346637747,1735138244223,-500.0,0.00011721,2]
[346637748,1735138244233,-500.0,0.00011721,2]
[346637749,1735138244243,-500.0,0.00011721,2]
[346637750,1735138244252,-500.0,0.00011721,2]
[346637751,1735138244262,-500.0,0.00011721,2]
[346637752,1735138244272,-500.0,0.00011721,2]
[346637753,1735138244281,-500.0,0.00011721,2]
[346637754,1735138244291,-2997.414,0.00011721,2]
[346637755,1735138244300,-542.21,0.00011721,2]
[346637756,1735138244310,-500.0,0.00011721,2]
[346637757,1735138244319,-500.0,0.00011721,2]
[346637758,1735138244329,-500.0,0.00011721,2]
[346637759,1735138244339,-500.0,0.00011721,2]
[346637760,1735138244349,-500.0,0.00011721,2]
[346637761,1735138244359,-500.0,0.00011721,2]
[346637762,1735138244369,-562.17,0.00011721,2]
[346637763,1735138244378,-500.0,0.00011721,2]
[346637764,1735138244388,-500.0,0.00011721,2]
[346637765,1735138244398,-2274.25196,0.00011721,2]
[346637766,1735138244408,-500.0,0.00011722,2]
[346637767,1735138244418,-40134.7879868,0.00011725,2]
[346637768,1735138244428,-50000.00000001,0.0001185,2]
[346637769,1735138244439,-600.0,0.000119,4]
[346637770,1735138244448,-500.0,0.00011972,2]
[346637771,1735138244458,-1900.0,0.00011972,2]
[346637772,1735138244468,-348.09,0.00011992,2]
[346637773,1735138244477,-500.0,0.00011992,2]
[346637774,1735138244487,-517.58,0.00011992,2]
[346637775,1735138244497,-562.98,0.00011992,2]
[346637776,1735138244507,-1455.96,0.00011992,2]
[346637777,1735138244517,-500.0,0.00011992,2]
[346637778,1735138244527,-408.9672553,0.00011992,2]
[346637779,1735138244537,-892.07,0.00011992,2]
[346637780,1735138244547,-500.0,0.00011992,2]
[346637781,1735138244556,-500.0,0.00011992,2]
[346637782,1735138244566,-1611.91,0.00011992,2]
[346637783,1735138244575,-500.0,0.00011992,2]
[346637784,1735138244585,-1105.83,0.00011992,2]
[346637785,1735138244594,-500.0,0.00011992,2]
[346637786,1735138244604,-962.59,0.00011992,2]
[346637787,1735138244613,-500.0,0.00011992,2]
[346637788,1735138244623,-1443.93,0.00011992,2]
[346637789,1735138244632,-3164.9,0.00011992,2]
[346637790,1735138244650,-500.0,0.00011992,2]
[346637791,1735138244660,-500.0,0.00011992,2]
[346637792,1735138244670,-699.47,0.00011992,2]
[346637793,1735138244679,-500.0,0.00011992,2]
[346637794,1735138244688,-546.99,0.00011992,2]
[346637795,1735138244698,-501.35,0.00011992,2]
[346637796,1735138244708,-500.0,0.00011992,2]
[346637797,1735138244718,-955.27,0.00011992,2]
[346637798,1735138244728,-500.0,0.00011992,2]
[346637799,1735138244737,-500.0,0.00011992,2]
[346637800,1735138244747,-500.0,0.00011992,2]
[346637801,1735138244756,-500.0,0.00011992,2]
[346637802,1735138244766,-1780.7,0.00011992,2]
[346637803,1735138244776,-500.0,0.00011992,2]
[346637804,1735138244786,-500.0,0.00011993,2]
[346637805,1735138244795,-500.0,0.00011993,2]
[346637806,1735138244805,-375.51114079,0.00011993,2]
[346637807,1735138244815,-500.0,0.00011993,2]
[346637808,1735138244824,-500.0,0.00011993,2]
[346637809,1735138244833,-500.0,0.00011993,2]
[346637810,1735138244843,-500.0,0.00011993,2]
[346637811,1735138244852,-500.0,0.00011993,2]
[346637812,1735138244862,-500.0,0.00011993,2]
[346637813,1735138244872,-500.0,0.00011993,2]
[346637814,1735138244881,-500.0,0.00011993,2]
[346637815,1735138244891,-500.0,0.00011993,2]
[346637816,1735138244900,-633.34146129,0.00011993,2]
[346637817,1735138244910,-500.0,0.00011993,2]
[346637818,1735138244919,-500.0,0.00011993,2]
[346637819,1735138244929,-500.0,0.00011993,2]
[346637820,1735138244938,-500.0,0.00011993,2]
[346637821,1735138244948,-500.0,0.00011993,2]
[346637822,1735138244957,-500.0,0.00011993,2]
[346637823,1735138244967,-500.0,0.00011993,2]
[346637824,1735138244976,-500.0,0.00011993,2]
[346637825,1735138244987,-500.0,0.00011993,2]
[346637826,1735138244996,-500.0,0.00011993,2]
[346637827,1735138245006,-500.0,0.00011993,2]
[346637828,1735138245015,-500.0,0.00011993,2]
[346637829,1735138245026,-500.0,0.00011993,2]
[346637830,1735138245036,-500.0,0.00011993,2]
[346637831,1735138245045,-500.0,0.00011993,2]
[346637832,1735138245055,-500.0,0.00011993,2]
[346637833,1735138245064,-500.0,0.00011993,2]
[346637834,1735138245074,-500.0,0.00011993,2]
[346637835,1735138245084,-1475.29,0.00011993,2]
[346637836,1735138245097,-500.0,0.00011993,2]
[346637837,1735138245107,-500.0,0.00011993,2]
[346637838,1735138245116,-311.41887095,0.00011993,2]
[346637839,1735138245126,-680.74,0.00011993,2]
[346637840,1735138245136,-500.0,0.00011993,2]
[346637841,1735138245146,-500.0,0.00011993,2]
[346637842,1735138245156,-500.0,0.00011993,2]
[346637843,1735138245166,-500.0,0.00011993,2]
[346637844,1735138245176,-500.0,0.00011993,2]
[346637845,1735138245185,-816.46,0.00011993,2]
[346637846,1735138245194,-500.0,0.00011993,2]
[346637847,1735138245204,-537.18,0.00011993,2]
[346637848,1735138245214,-500.0,0.00011993,2]
[346637849,1735138245223,-500.0,0.00011993,2]
[346637850,1735138245234,-1121.16,0.00011993,2]
[346637851,1735138245243,-500.0,0.00011993,2]
[346637852,1735138245254,-500.0,0.00011993,2]
[346637853,1735138245263,-500.0,0.00011993,2]
[346637854,1735138245272,-500.0,0.00011993,2]
[346637855,1735138245284,-500.0,0.00011993,2]
[346637856,1735138245293,-500.0,0.00011993,2]
[346637857,1735138245302,-500.0,0.00011993,2]
[346637858,1735138245312,-500.0,0.00011993,2]
[346637859,1735138245321,-585.06,0.00011993,2]
[346637860,1735138245331,-500.0,0.00011993,2]
[346637861,1735138245340,-500.0,0.00011993,2]
[346637862,1735138245350,-1107.46,0.00011993,2]
[346637863,1735138245360,-2619.04,0.00011993,2]
[346637864,1735138245369,-500.0,0.00011993,2]
[346637865,1735138245379,-531.18,0.00011993,2]
[346637866,1735138245388,-676.55,0.00011993,2]
[346637867,1735138245398,-500.0,0.00011993,2]
[346637868,1735138245408,-526.33,0.00011993,2]
[346637869,1735138245418,-500.0,0.00011993,2]
[346637870,1735138245427,-518.07,0.00011993,2]
[346637871,1735138245436,-1078.76,0.00011993,2]
[346637872,1735138245445,-500.0,0.00011993,2]
[346637873,1735138245455,-500.0,0.00011993,2]
[346637874,1735138245464,-500.0,0.00011993,2]
[346637875,1735138245474,-500.0,0.00011993,2]
[346637876,1735138245485,-1145.47,0.00011993,2]
[346637877,1735138245494,-500.0,0.00011993,2]
[346637878,1735138245504,-1073.77,0.00011993,2]
[346637879,1735138245513,-500.0,0.00011993,2]
[346637880,1735138245523,-581.69,0.00011993,2]
[346637881,1735138245533,-500.0,0.00011993,2]
[346637882,1735138245543,-500.0,0.00011993,2]
[346637883,1735138245553,-3524.36,0.00011993,2]
[346637884,1735138245563,-231.40431616,0.00011993,2]
[346637885,1735138245573,-500.0,0.00011993,2]
[346637886,1735138245583,-500.0,0.00011993,2]
[346637887,1735138245592,-1078.36,0.00011993,2]
[346637888,1735138245603,-500.0,0.00011993,2]
[346637889,1735138245619,-500.0,0.00011993,2]
[346637890,1735138245634,-500.0,0.00011993,2]
[346637891,1735138245643,-778.38,0.00011993,2]
[346637892,1735138245653,-2050.37,0.00011993,2]
[346637893,1735138245662,-500.0,0.00011993,2]
[346637894,1735138245671,-7901.65,0.00011993,2]
[346637895,1735138245681,-2422.79,0.00011993,2]
[346637896,1735138245690,-500.0,0.00011993,2]
[346637897,1735138245699,-500.0,0.00011993,2]
[346637898,1735138245708,-765.29,0.00011993,2]
[346637899,1735138245718,-529.68,0.00011993,2]
[346637900,1735138245727,-500.0,0.00011993,2]
[346637901,1735138245736,-500.0,0.00011993,2]
[346637902,1735138245745,-500.0,0.00011993,2]
[346637903,1735138245754,-500.0,0.00011993,2]
[346637904,1735138245764,-712.8,0.00011993,2]
[346637905,1735138245773,-776.31,0.00011993,2]
[346637906,1735138245783,-509.91,0.00011993,2]
[346637907,1735138245793,-500.0,0.00011993,2]
[346637908,1735138245802,-500.0,0.00011993,2]
[346637909,1735138245812,-500.0,0.00011993,2]
[346637910,1735138245822,-500.0,0.00011993,2]
[346637911,1735138245831,-713.12,0.00011994,2]
[346637912,1735138245840,-4948.14,0.00011994,2]
[346637913,1735138245851,-151.38955772,0.00011994,2]
[346637914,1735138245860,-561.47,0.00011994,2]
[346637915,1735138245870,-520.04,0.00011994,2]
[346637916,1735138245880,-500.0,0.00011994,2]
[346637917,1735138245890,-1114.29,0.00011994,2]
[346637918,1735138245899,-570.74,0.00011994,2]
[346637919,1735138245909,-500.0,0.00011994,2]
[346637920,1735138245918,-1569.54,0.00011994,2]
[346637921,1735138245928,-545.05,0.00011994,2]
[346637922,1735138245939,-500.0,0.00011995,2]
[346637923,1735138245949,-299.90319792,0.00011995,2]
[346637924,1735138245959,-500.0,0.00011995,2]
[346637925,1735138245969,-500.0,0.00011995,2]
[346637926,1735138245979,-495.13059934,0.00011995,2]
[346637927,1735138245988,-500.0,0.00011995,2]
[346637928,1735138245998,-500.0,0.00011995,2]
[346637929,1735138246007,-500.0,0.00011995,2]
[346637930,1735138246017,-500.0,0.00011995,2]
[346637931,1735138246028,-500.0,0.00011995,2]
[346637932,1735138246038,-500.0,0.00011995,2]
[346637933,1735138246047,-207.25886921,0.00011995,2]
[346637934,1735138246057,-590.19694024,0.00011995,2]
[346637935,1735138246067,-500.0,0.00011995,2]
[346637936,1735138246077,-542.21,0.00011995,2]
[346637938,1735138246085,-500.0,0.00011995,2]
[346637939,1735138246099,-500.0,0.00011995,2]
[346637940,1735138246109,-500.0,0.00011995,2]
[346637941,1735138246119,-500.0,0.00011995,2]
[346637942,1735138246129,-500.0,0.00011995,2]
[346637943,1735138246138,-500.0,0.00011995,2]
[346637944,1735138246148,-562.17,0.00011995,2]
[346637945,1735138246158,-500.0,0.00011995,2]
[346637946,1735138246168,-500.0,0.00011995,2]
[346637947,1735138246178,-2200.0,0.00012,2]
[346637948,1735138246188,-6612.15112467,0.00012,2]
[346637949,1735138246197,-2515.82551841,0.00012,2]
[346637950,1735138246206,-1300.0,0.00012,4]
[346637951,1735138246216,-23568.22,0.00012055,2]
[346637952,1735138246226,-151.0,0.00012055,2]
[346637953,1735138246235,-2000.0,0.000121,4]
[346637954,1735138246245,-1000.0,0.000122,2]
[346637955,1735138246254,-230.0,0.000122,2]
[346637956,1735138246264,-974.1,0.000122,2]
[346637957,1735138246274,-2700.0,0.000122,4]
[346637958,1735138246284,-800.0,0.00012246,2]
[346637959,1735138246293,-500.0,0.00012266,2]
[346637960,1735138246303,-517.58,0.00012266,2]
[346637961,1735138246313,-562.98,0.00012266,2]
[346637962,1735138246322,-1455.96,0.00012266,2]
[346637963,1735138246332,-500.0,0.00012266,2]
[346637964,1735138246341,-892.07,0.00012266,2]
[346637965,1735138246351,-500.0,0.00012266,2]
[346637966,1735138246361,-500.0,0.00012266,2]
[346637967,1735138246371,-1611.91,0.00012266,2]
[346637968,1735138246380,-500.0,0.00012266,2]
[346637969,1735138246389,-1105.83,0.00012266,2]
[346637970,1735138246399,-500.0,0.00012266,2]
[346637971,1735138246409,-962.59,0.00012266,2]
[346637972,1735138246419,-500.0,0.00012266,2]
[346637973,1735138246428,-1443.93,0.00012266,2]
[346637974,1735138246438,-3164.9,0.00012266,2]
[346637975,1735138246447,-500.0,0.00012266,2]
[346637976,1735138246457,-500.0,0.00012266,2]
[346637977,1735138246467,-699.47,0.00012266,2]
[346637978,1735138246477,-500.0,0.00012266,2]
[346637979,1735138246487,-546.99,0.00012266,2]
[346637980,1735138246496,-501.35,0.00012266,2]
[346637981,1735138246506,-500.0,0.00012266,2]
[346637982,1735138246515,-955.27,0.00012266,2]
[346637983,1735138246524,-500.0,0.00012266,2]
[346637984,1735138246535,-500.0,0.00012266,2]
[346637985,1735138246544,-500.0,0.00012266,2]
[346637986,1735138246554,-500.0,0.00012266,2]
[346637987,1735138246564,-1780.7,0.00012266,2]
[346637988,1735138246574,-500.0,0.00012266,2]
[346637989,1735138246583,-500.0,0.00012267,2]
[346637990,1735138246593,-500.0,0.00012267,2]
[346637991,1735138246602,-500.0,0.00012267,2]
[346637992,1735138246612,-500.0,0.00012267,2]
[346637993,1735138246621,-500.0,0.00012267,2]
[346637994,1735138246631,-500.0,0.00012267,2]
[346637995,1735138246640,-500.0,0.00012267,2]
[346637996,1735138246649,-500.0,0.00012267,2]
[346637997,1735138246659,-500.0,0.00012267,2]
[346637998,1735138246669,-500.0,0.00012267,2]
[346637999,1735138246678,-500.0,0.00012267,2]
[346638000,1735138246687,-500.0,0.00012267,2]
[346638001,1735138246697,-500.0,0.00012267,2]
[346638002,1735138246706,-500.0,0.00012267,2]
[346638003,1735138246716,-500.0,0.00012267,2]
[346638004,1735138246726,-500.0,0.00012267,2]
[346638005,1735138246735,-500.0,0.00012267,2]
[346638006,1735138246744,-500.0,0.00012267,2]
[346638007,1735138246753,-500.0,0.00012267,2]
[346638009,1735138246765,-500.0,0.00012267,2]
[346638011,1735138246776,-500.0,0.00012267,2]
[346638012,1735138246789,-500.0,0.00012267,2]
[346638013,1735138246801,-500.0,0.00012267,2]
[346638014,1735138246814,-500.0,0.00012267,2]
[346638015,1735138246825,-500.0,0.00012267,2]
[346638016,1735138246837,-500.0,0.00012267,2]
[346638017,1735138246847,-500.0,0.00012267,2]
[346638018,1735138246857,-500.0,0.00012267,2]
[346638019,1735138246867,-500.0,0.00012267,2]
[346638020,1735138246880,-1475.29,0.00012267,2]
[346638021,1735138246891,-500.0,0.00012267,2]
[346638022,1735138246903,-500.0,0.00012267,2]
[346638023,1735138246913,-680.74,0.00012267,2]
[346638024,1735138246925,-500.0,0.00012267,2]
[346638025,1735138246936,-500.0,0.00012267,2]
[346638026,1735138246947,-500.0,0.00012267,2]
[346638027,1735138246958,-500.0,0.00012267,2]
[346638028,1735138246969,-500.0,0.00012267,2]
[346638029,1735138246981,-816.46,0.00012267,2]
[346638030,1735138246992,-500.0,0.00012267,2]
[346638031,1735138247003,-537.18,0.00012267,2]
[346638032,1735138247014,-500.0,0.00012267,2]
[346638033,1735138247024,-500.0,0.00012267,2]
[346638034,1735138247036,-1121.16,0.00012267,2]
[346638035,1735138247046,-500.0,0.00012267,2]
[346638036,1735138247056,-500.0,0.00012267,2]
[346638037,1735138247067,-500.0,0.00012267,2]
[346638038,1735138247079,-500.0,0.00012267,2]
[346638039,1735138247093,-500.0,0.00012267,2]
[346638040,1735138247105,-500.0,0.00012267,2]
[346638041,1735138247117,-500.0,0.00012267,2]
[346638042,1735138247128,-500.0,0.00012267,2]
[346638043,1735138247140,-585.06,0.00012267,2]
[346638044,1735138247151,-500.0,0.00012267,2]
[346638045,1735138247162,-500.0,0.00012267,2]
[346638046,1735138247175,-1107.46,0.00012267,2]
[346638047,1735138247186,-2619.04,0.00012267,2]
[346638048,1735138247198,-500.0,0.00012267,2]
[346638049,1735138247210,-531.18,0.00012267,2]
[346638050,1735138247221,-676.55,0.00012267,2]
[346638051,1735138247232,-500.0,0.00012267,2]
[346638052,1735138247244,-526.33,0.00012267,2]
[346638053,1735138247256,-500.0,0.00012267,2]
[346638054,1735138247267,-518.07,0.00012267,2]
[346638055,1735138247279,-1078.76,0.00012267,2]
[346638056,1735138247290,-500.0,0.00012267,2]
[346638057,1735138247301,-500.0,0.00012267,2]
[346638058,1735138247313,-500.0,0.00012267,2]
[346638059,1735138247325,-500.0,0.00012267,2]
[346638060,1735138247335,-1145.47,0.00012267,2]
[346638061,1735138247347,-500.0,0.00012267,2]
[346638062,1735138247358,-1073.77,0.00012267,2]
[346638063,1735138247369,-500.0,0.00012267,2]
[346638064,1735138247380,-581.69,0.00012267,2]
[346638065,1735138247393,-500.0,0.00012267,2]
[346638066,1735138247403,-500.0,0.00012267,2]
[346638067,1735138247414,-3524.36,0.00012267,2]
[346638068,1735138247425,-500.0,0.00012267,2]
[346638069,1735138247437,-500.0,0.00012267,2]
[346638070,1735138247448,-1078.36,0.00012267,2]
[346638071,1735138247458,-500.0,0.00012267,2]
[346638072,1735138247469,-500.0,0.00012267,2]
[346638073,1735138247480,-500.0,0.00012267,2]
[346638074,1735138247491,-778.38,0.00012267,2]
[346638075,1735138247501,-2050.37,0.00012267,2]
[346638076,1735138247514,-500.0,0.00012267,2]
[346638077,1735138247527,-7901.65,0.00012267,2]
[346638078,1735138247540,-2422.79,0.00012267,2]
[346638079,1735138247551,-500.0,0.00012267,2]
[346638080,1735138247561,-500.0,0.00012267,2]
[346638081,1735138247572,-765.29,0.00012267,2]
[346638082,1735138247582,-529.68,0.00012267,2]
[346638083,1735138247592,-500.0,0.00012267,2]
[346638084,1735138247603,-500.0,0.00012267,2]
[346638085,1735138247614,-500.0,0.00012267,2]
[346638086,1735138247625,-500.0,0.00012267,2]
[346638087,1735138247638,-712.8,0.00012267,2]
[346638088,1735138247650,-776.31,0.00012267,2]
[346638089,1735138247661,-509.91,0.00012267,2]
[346638090,1735138247671,-500.0,0.00012267,2]
[346638091,1735138247682,-500.0,0.00012267,2]
[346638092,1735138247692,-397.03568828,0.00012267,2]
[346638093,1735138247703,-500.0,0.00012267,2]
[346638094,1735138247713,-713.12,0.00012268,2]
[346638095,1735138247723,-4948.14,0.00012268,2]
[346638096,1735138247734,-561.47,0.00012268,2]
[346638097,1735138247745,-520.04,0.00012268,2]
[346638098,1735138247756,-500.0,0.00012268,2]
[346638099,1735138247767,-1114.29,0.00012268,2]
[346638100,1735138247777,-570.74,0.00012268,2]
[346638101,1735138247788,-500.0,0.00012268,2]
[346638102,1735138247799,-1569.54,0.00012268,2]
[346638103,1735138247810,-545.05,0.00012268,2]
[346638104,1735138247821,-334.27440044,0.00012269,2]
[346638105,1735138247832,-500.0,0.00012269,2]
[346638106,1735138247843,-500.0,0.00012269,2]
[346638107,1735138247853,-609.02645672,0.00012269,2]
[346638108,1735138247865,-500.0,0.00012269,2]
[346638109,1735138247876,-500.0,0.00012269,2]
[346638110,1735138247887,-500.0,0.00012269,2]
[346638111,1735138247900,-500.0,0.00012269,2]
[346638112,1735138247913,-500.0,0.00012269,2]
[346638113,1735138247923,-500.0,0.00012269,2]
[346638114,1735138247933,-542.21,0.00012269,2]
[346638115,1735138247945,-500.0,0.00012269,2]
[346638116,1735138247955,-500.0,0.00012269,2]
[346638117,1735138247966,-500.0,0.00012269,2]
[346638118,1735138247976,-351.16650019,0.00012269,2]
[346638119,1735138247987,-500.0,0.00012269,2]
[346638120,1735138247998,-500.0,0.00012269,2]
[346638121,1735138248011,-562.17,0.00012269,2]
[346638122,1735138248022,-500.0,0.00012269,2]
[346638123,1735138248033,-500.0,0.00012269,2]
[346638124,1735138248044,-500.0,0.0001227,2]
[346638125,1735138248055,-3400.0,0.000123,4]
[346638126,1735138248068,-197.64824,0.00012301,2]
[346638127,1735138248079,-500.0,0.00012328,2]
[346638128,1735138248092,-500.0,0.00012328,2]
[346638129,1735138248103,-500.0,0.00012328,2]
[346638130,1735138248113,-500.0,0.00012328,2]
[346638131,1735138248124,-500.0,0.00012328,2]
[346638132,1735138248135,-500.0,0.00012328,2]
[346638133,1735138248147,-500.0,0.00012328,2]
[346638134,1735138248158,-500.0,0.00012328,2]
[346638135,1735138248170,-151.0,0.00012329,2]
[346638136,1735138248181,-151.0,0.00012329,2]
[346638137,1735138248192,-151.0,0.00012329,2]
[346638138,1735138248203,-151.279847,0.00012329,2]
[346638139,1735138248214,-153.650383,0.00012329,2]
[346638140,1735138248225,-982.07,0.00012329,2]
[346638141,1735138248237,-154.841723,0.00012329,2]
[346638142,1735138248248,-151.0,0.00012329,2]
[346638143,1735138248260,-151.0,0.00012329,2]
[346638144,1735138248271,-151.0,0.00012329,2]
[346638145,1735138248283,-151.0,0.00012329,2]
[346638146,1735138248294,-151.0,0.00012329,2]
[346638147,1735138248305,-151.0,0.00012329,2]
[346638148,1735138248316,-151.848185,0.00012329,2]
[346638149,1735138248327,-151.0,0.00012329,2]
[346638150,1735138248338,-151.0,0.00012329,2]
[346638151,1735138248349,-151.0,0.00012329,2]
[346638152,1735138248360,-151.0,0.00012329,2]
[346638153,1735138248371,-151.0,0.00012329,2]
[346638154,1735138248383,-151.0,0.00012329,2]
[346638155,1735138248395,-237.411285,0.00012329,2]
[346638156,1735138248406,-237.411285,0.00012329,2]
[346638157,1735138248417,-151.0,0.00012329,2]
[346638158,1735138248427,-151.0,0.00012329,2]
[346638159,1735138248438,-151.0,0.00012329,2]
[346638160,1735138248450,-151.0,0.00012329,2]
[346638161,1735138248460,-151.0,0.00012329,2]
[346638162,1735138248471,-151.0,0.00012329,2]
[346638163,1735138248483,-151.0,0.00012329,2]
[346638164,1735138248494,-167.87387,0.00012329,2]
[346638165,1735138248505,-167.87387,0.00012329,2]
[346638166,1735138248517,-151.0,0.00012329,2]
[346638167,1735138248529,-151.0,0.00012329,2]
[346638168,1735138248541,-151.0,0.00012329,2]
[346638169,1735138248553,-151.358175,0.00012329,2]
[346638170,1735138248565,-151.487274,0.00012329,2]
[346638171,1735138248577,-151.0,0.00012329,2]
[346638172,1735138248588,-151.0,0.00012329,2]
[346638173,1735138248599,-151.0,0.00012329,2]
[346638174,1735138248610,-151.0,0.00012329,2]
[346638175,1735138248621,-151.0,0.00012329,2]
[346638176,1735138248632,-151.0,0.00012329,2]
[346638177,1735138248643,-153.14955,0.00012329,2]
[346638178,1735138248655,-151.0,0.00012329,2]
[346638179,1735138248666,-151.0,0.00012329,2]
[346638180,1735138248677,-151.0,0.00012329,2]
[346638181,1735138248688,-151.0,0.00012329,2]
[346638182,1735138248699,-204.992066,0.00012329,2]
[346638183,1735138248710,-151.0,0.00012329,2]
[346638184,1735138248720,-151.0,0.00012329,2]
[346638185,1735138248732,-151.0,0.00012329,2]
[346638186,1735138248742,-151.0,0.00012329,2]
[346638187,1735138248754,-2428.705202,0.00012329,2]
[346638188,1735138248765,-151.0,0.00012329,2]
[346638189,1735138248775,-2428.705202,0.00012329,2]
[346638190,1735138248787,-151.0,0.00012329,2]
[346638191,1735138248798,-152.732912,0.00012329,2]
[346638192,1735138248808,-180.227968,0.00012329,2]
[346638193,1735138248819,-180.227968,0.00012329,2]
[346638194,1735138248830,-870.987911,0.00012329,2]
[346638195,1735138248841,-216.105331,0.00012329,2]
[346638196,1735138248852,-870.987911,0.00012329,2]
[346638197,1735138248862,-151.0,0.00012329,2]
[346638198,1735138248873,-151.0,0.00012329,2]
[346638199,1735138248883,-151.0,0.00012329,2]
[346638200,1735138248894,-9142.86248155,0.00012399,2]
[346638201,1735138248905,-9142.86248146,0.00012399,2]
[346638202,1735138248916,-9142.86248146,0.00012399,2]
[346638203,1735138248926,-9142.86248146,0.00012399,2]
[346638204,1735138248936,-9142.86248146,0.00012399,2]
[346638205,1735138248946,-9142.86248146,0.00012399,2]
[346638206,1735138248956,-2206.87775741,0.00012399,2]
[346638207,1735138248967,-2206.87775737,0.00012399,2]
[346638208,1735138248977,-2206.87775737,0.00012399,2]
[346638209,1735138248989,-2206.87775737,0.00012399,2]
[346638210,1735138248999,-2206.87775737,0.00012399,2]
[346638211,1735138249010,-2206.87775737,0.00012399,2]
[346638212,1735138249020,-2206.87775737,0.00012399,2]
[346638213,1735138249030,-156.929027,0.00012399,2]
[346638214,1735138249041,-151.0,0.00012399,2]
[346638215,1735138249051,-151.0,0.00012399,2]
[346638216,1735138249061,-151.0,0.00012399,2]
[346638217,1735138249072,-155.897588,0.00012399,2]
[346638218,1735138249082,-151.0,0.00012399,2]
[346638219,1735138249097,-151.0,0.00012399,2]
[346638220,1735138249107,-151.0,0.00012399,2]
[346638221,1735138249118,-151.0,0.00012399,2]